fUSD/lending_fUSD_20251105
["ID","MTS","AMOUNT","RATE_DAILY","PERIOD"]
[393216061,1762329041117,-151.0,0.00017989,2]
[393216062,1762329041126,-151.0,0.00017989,2]
[393216063,1762329041135,-151.0,0.00017989,2]
[393216064,1762329041144,-151.0,0.00017989,2]
[393216065,1762329041156,-151.0,0.00017989,2]
[393216066,1762329041166,-151.0,0.00017989,2]
[393216067,1762329041175,-151.0,0.00017989,2]
[393216068,1762329041187,-151.0,0.00017989,2]
[393216069,1762329041198,-151.0,0.00017989,2]
[393216070,1762329041207,-151.0,0.00017989,2]
[393216071,1762329041217,-151.0,0.00017989,2]
[393216072,1762329041227,-151.0,0.00017989,2]
[393216073,1762329041236,-151.0,0.00017989,2]
[393216074,1762329041246,-151.0,0.00017989,2]
[393216075,1762329041258,-151.0,0.00017989,2]
[393216076,1762329041267,-151.0,0.00017989,2]
[393216077,1762329041278,-151.0,0.00017989,2]
[393216078,1762329041294,-151.0,0.00017989,2]
[393216079,1762329041303,-151.0,0.00017989,2]
[393216080,1762329041313,-151.0,0.00017989,2]
[393216081,1762329041322,-151.0,0.00017989,2]
[393216082,1762329041332,-151.0,0.00017989,2]
[393216083,1762329041341,-151.0,0.00017989,2]
[393216084,1762329041351,-151.0,0.00017989,2]
[393216085,1762329041360,-151.0,0.00017989,2]
[393216086,1762329041369,-198.91384848,0.00017989,2]
[393216087,1762329041379,-151.0,0.00017989,2]
[393216088,1762329041388,-151.0,0.00017989,2]
[393216089,1762329041398,-180.82586183,0.00017989,2]
[393216090,1762329041407,-151.0,0.00017989,2]
[393216091,1762329041416,-151.0,0.00017989,2]
[393216092,1762329041426,-151.0,0.00017989,2]
[393216093,1762329041435,-151.0,0.00017989,2]
[393216094,1762329041446,-151.0,0.00017989,2]
[393216095,1762329041455,-151.0,0.00017989,2]
[393216096,1762329041465,-151.0,0.00017989,2]
[393216097,1762329041474,-151.0,0.00017989,2]
[393216098,1762329041483,-151.0,0.00017989,2]
[393216099,1762329041492,-151.0,0.00017989,2]
[393216100,1762329041502,-876.16945045,0.0001799,2]
[393216101,1762329041511,-163.3,0.0001799,2]
[393216102,1762329041520,-163.3,0.0001799,2]
[393216103,1762329041529,-163.3,0.0001799,2]
[393216104,1762329041538,-163.3,0.0001799,2]
[393216105,1762329041548,-163.3,0.0001799,2]
[393216106,1762329041558,-1000.0,0.00017994,2]
[393216107,1762329041567,-151.0,0.00017996,2]
[393216108,1762329041577,-500.0,0.00017996,2]
[393216109,1762329041587,-403.4952759,0.00017996,2]
[393216110,1762329041596,-151.0,0.00017997,2]
[393216111,1762329041605,-367.82557697,0.00017998,2]
[393216112,1762329041614,-500.0,0.00017998,2]
[393216113,1762329041623,-500.0,0.00017998,2]
[393216114,1762329041633,-309.84740584,0.00017998,2]
[393216115,1762329041642,-577.58074401,0.00017998,2]
[393216116,1762329041651,-27.49314765,0.00017999,2]
[393216117,1762329041660,-500.0,0.00017999,2]
[393216118,1762329041671,-500.0,0.00017999,2]
[393216119,1762329041681,-500.0,0.00017999,2]
[393216120,1762329041690,-500.0,0.00017999,2]
[393216121,1762329041700,-500.0,0.00017999,2]
[393216122,1762329041710,-500.0,0.00017999,2]
[393216123,1762329041719,-500.0,0.00017999,2]
[393216124,1762329041729,-500.0,0.00017999,2]
[393216125,1762329041738,-500.0,0.00017999,2]
[393216126,1762329041748,-647.9,0.00017999,2]
[393216127,1762329041757,-626.82797415,0.00017999,2]
[393216128,1762329041766,-500.0,0.00017999,2]
[393216129,1762329041774,-302.63766833,0.00017999,2]
[393216130,1762329041784,-525.82294279,0.00017999,2]
[393216131,1762329041797,-500.0,0.00017999,2]
[393216132,1762329041807,-500.0,0.00017999,2]
[393216133,1762329041816,-500.0,0.00017999,2]
[393216134,1762329041825,-158.25209266,0.00017999,2]
[393216135,1762329041835,-500.0,0.00017999,2]
[393216136,1762329041845,-500.0,0.00017999,2]
[393216137,1762329041855,-500.0,0.00017999,2]
[393216138,1762329041866,-500.0,0.00017999,2]
[393216139,1762329041876,-579.37551612,0.00017999,2]
[393216140,1762329041885,-500.0,0.00017999,2]
[393216141,1762329041894,-500.0,0.00017999,2]
[393216142,1762329041903,-500.0,0.00017999,2]
[393216143,1762329041914,-500.0,0.00017999,2]
[393216144,1762329041924,-500.0,0.00017999,2]
[393216145,1762329041934,-68653.377551,0.00017999,2]
[393216146,1762329041943,-151.92422519,0.00017999,2]
[393216147,1762329041954,-150.0,0.00017999,2]
[393216148,1762329041964,-150.0,0.00017999,2]
[393216149,1762329041973,-150.0,0.00017999,2]
[393216150,1762329041982,-150.0,0.00017999,2]
[393216151,1762329041990,-500.0,0.00017999,2]
[393216152,1762329041999,-150.0,0.00017999,2]
[393216153,1762329042009,-150.0,0.00017999,2]
[393216154,1762329042019,-500.0,0.00017999,2]
[393216155,1762329042027,-150.0,0.00017999,2]
[393216156,1762329042037,-150.0,0.00017999,2]
[393216157,1762329042046,-150.0,0.00017999,2]
[393216158,1762329042055,-500.0,0.00017999,2]
[393216159,1762329042064,-500.0,0.00017999,2]
[393216160,1762329042073,-150.0,0.00017999,2]
[393216161,1762329042083,-150.0,0.00017999,2]
[393216162,1762329042091,-500.0,0.00017999,2]
[393216163,1762329042101,-500.0,0.00017999,2]
[393216164,1762329042111,-500.0,0.00017999,2]
[393216165,1762329042122,-3684.0,0.00018,2]
[393216166,1762329042132,-1496326.61632645,0.00018,2]
[393216167,1762329042146,-254.52879237,0.00018,2]
[393216168,1762329042190,-33323.71873711,0.00018,2]
[393216179,1762329043131,-1200.54754381,0.00018,2]
[393216180,1762329043141,-1201.80806981,0.00018,2]
[393216181,1762329043153,-639.72694786,0.00018,2]
[393216182,1762329043164,-1484.8500347,0.00018,2]
[393216183,1762329043180,-1605.14703367,0.00018,2]
[393216184,1762329043190,-833.00327616,0.00018,2]
[393216185,1762329043201,-811.89870376,0.00018,2]
[393216186,1762329043211,-586.34429986,0.00018,2]
[393216187,1762329043225,-516.96080878,0.00018,2]
[393216188,1762329043239,-133376.52292834,0.00018,2]
[393216198,1762329046223,-9339.08823604,0.00018,2]
[393216206,1762329103746,10000.0,0.00030137,120]
[393216213,1762329373150,367.71,0.00013699,2]
[393216259,1762329688802,-773.15965514,0.000165,2]
[393216260,1762329688829,-196.14,0.00016712,2]
[393216261,1762329688855,-2751.0,0.00017351,2]
[393216262,1762329688880,-500.0,0.00017437,2]
[393216263,1762329688906,-665.815802,0.00017591,2]
[393216264,1762329689016,-31.62908572,0.00017591,2]
[393216331,1762330158350,192.22,0.00013754,2]
[393216344,1762330232416,-183.47716895,0.00016851,2]
[393216345,1762330232426,-103.84673484,0.00017089,2]
[393216346,1762330232437,-62.81326516,0.00017089,2]
[393216347,1762330232446,-2107.64,0.00017231,2]
[393216348,1762330232456,-166.66,0.00017449,2]
[393216349,1762330232465,-198.70784075,0.000177,2]
[393216350,1762330232474,-366.37834185,0.00017738,2]
[393216351,1762330232483,-80.12433564,0.00017747,2]
[393216365,1762330238256,-141.63358065,0.00017747,2]
[393216366,1762330238266,-166.66,0.00017789,2]
[393216367,1762330238276,-166.66,0.00017809,2]
[393216368,1762330238286,-200.0,0.00017855,2]
[393216369,1762330238296,-1200.0,0.00017855,2]
[393216370,1762330238305,-300.0,0.00017855,2]
[393216371,1762330238316,-500.0,0.00017856,2]
[393216372,1762330238326,-500.0,0.00017856,2]
[393216373,1762330238336,-200.0,0.00017856,2]
[393216374,1762330238346,-200.0,0.00017856,2]
[393216375,1762330238355,-500.0,0.00017973,2]
[393216376,1762330238365,-500.0,0.00017973,2]
[393216377,1762330238374,-96.14076774,0.00017973,2]
[393216378,1762330238386,-403.85923226,0.00017973,2]
[393216379,1762330238404,-329.81666734,0.00017973,2]
[393216380,1762330238419,-170.18333266,0.00017973,2]
[393216381,1762330238428,-476.03838915,0.00017973,2]
[393216383,1762330238438,-500.0,0.00017973,2]
[393216384,1762330238450,-500.0,0.00017973,2]
[393216385,1762330238460,-500.0,0.00017973,2]
[393216386,1762330238469,-359.875385,0.00017989,3]
[393216387,1762330238481,-639.124615,0.00017989,3]
[393216389,1762330238491,-546.79,0.00017989,2]
[393216390,1762330238502,-620.0,0.00017989,2]
[393216391,1762330238511,-151.0,0.00017989,2]
[393216392,1762330238521,-151.0,0.00017989,2]
[393216393,1762330238531,-151.0,0.00017989,2]
[393216394,1762330238543,-87.91278202,0.00017989,2]
[393216395,1762330238555,-63.08721798,0.00017989,2]
[393216396,1762330238567,-151.0,0.00017989,2]
[393216397,1762330238577,-192.99999984,0.00017989,2]
[393216398,1762330238589,-151.0,0.00017989,2]
[393216399,1762330238599,-151.0,0.00017989,2]
[393216400,1762330238608,-151.0,0.00017989,2]
[393216401,1762330238618,-151.0,0.00017989,2]
[393216402,1762330238628,-200.0,0.00017989,2]
[393216403,1762330238639,-151.0,0.00017989,2]
[393216404,1762330238649,-151.0,0.00017989,2]
[393216405,1762330238659,-151.0,0.00017989,2]
[393216406,1762330238669,-151.0,0.00017989,2]
[393216407,1762330238679,-151.0,0.00017989,2]
[393216408,1762330238689,-151.0,0.00017989,2]
[393216409,1762330238700,-151.0,0.00017989,2]
[393216410,1762330238710,-151.0,0.00017989,2]
[393216411,1762330238720,-151.0,0.00017989,2]
[393216412,1762330238732,-322.6107,0.00017989,2]
[393216413,1762330238742,-151.0,0.00017989,2]
[393216414,1762330238753,-500.0,0.00017989,2]
[393216415,1762330238763,-151.0,0.00017989,2]
[393216416,1762330238773,-151.0,0.00017989,2]
[393216417,1762330238783,-500.0,0.00017989,2]
[393216418,1762330238792,-151.0,0.00017989,2]
[393216419,1762330238802,-151.0,0.00017989,2]
[393216420,1762330238812,-500.0,0.00017989,2]
[393216421,1762330238822,-151.0,0.00017989,2]
[393216422,1762330238831,-151.0,0.00017989,2]
[393216423,1762330238841,-500.0,0.00017989,2]
[393216424,1762330238851,-151.0,0.00017989,2]
[393216425,1762330238866,-500.0,0.00017989,2]
[393216426,1762330238877,-176.16657067,0.00017989,2]
[393216427,1762330238894,-159.97104851,0.00017989,2]
[393216428,1762330238905,-151.0,0.00017989,2]
[393216429,1762330238915,-151.0,0.00017989,2]
[393216430,1762330238925,-151.0,0.00017989,2]
[393216431,1762330238935,-151.0,0.00017989,2]
[393216432,1762330238947,-151.0,0.00017989,2]
[393216433,1762330238957,-151.0,0.00017989,2]
[393216434,1762330238967,-208.7547261,0.00017989,2]
[393216435,1762330238978,-151.0,0.00017989,2]
[393216436,1762330238987,-151.0,0.00017989,2]
[393216437,1762330238997,-151.0,0.00017989,2]
[393216438,1762330239007,-151.0,0.00017989,2]
[393216439,1762330239016,-151.0,0.00017989,2]
[393216440,1762330239025,-151.0,0.00017989,2]
[393216441,1762330239035,-151.0,0.00017989,2]
[393216442,1762330239044,-151.0,0.00017989,2]
[393216443,1762330239054,-151.0,0.00017989,2]
[393216444,1762330239064,-1240.0,0.00017996,2]
[393216445,1762330239074,-1240.0,0.00017996,2]
[393216446,1762330239083,-949.45453968,0.00017996,2]
[393216447,1762330239094,-14719.4877323,0.00017998,2]
[393216448,1762330239104,-16580.65196285,0.00017998,2]
[393216460,1762330243350,-2190.89362055,0.00017998,2]
[393216461,1762330243359,-150.0,0.00017999,2]
[393216462,1762330243368,-9999.99,0.00017999,2]
[393216463,1762330243378,-500.0,0.00017999,2]
[393216464,1762330243386,-5723.16,0.00017999,2]
[393216465,1762330243395,-9999.99,0.00017999,2]
[393216466,1762330243405,-150.0,0.00017999,2]
[393216467,1762330243414,-150.0,0.00017999,2]
[393216468,1762330243423,-200.0,0.00017999,2]
[393216469,1762330243432,-150.0,0.00017999,2]
[393216470,1762330243441,-150.0,0.00017999,2]
[393216471,1762330243452,-150.0,0.00017999,2]
[393216472,1762330243461,-500.0,0.00017999,2]
[393216473,1762330243471,-150.0,0.00017999,2]
[393216474,1762330243480,-150.0,0.00017999,2]
[393216475,1762330243489,-150.0,0.00017999,2]
[393216476,1762330243498,-150.0,0.00017999,2]
[393216477,1762330243507,-150.0,0.00017999,2]
[393216478,1762330243517,-150.0,0.00017999,2]
[393216479,1762330243526,-150.0,0.00017999,2]
[393216480,1762330243535,-500.0,0.00017999,2]
[393216481,1762330243548,-500.0,0.00017999,2]
[393216482,1762330243558,-19140.88047546,0.00018,2]
[393216483,1762330243573,-797.76350892,0.00018,2]
[393216484,1762330243586,-6107.2870032,0.00018,2]
[393216512,1762330246443,-437.41200002,0.000179,2]
[393216513,1762330246782,-4819.37212117,0.000179,2]
[393216514,1762330246792,-150.0,0.00017999,2]
[393216515,1762330246802,-500.0,0.00017999,2]
[393216516,1762330246811,-651.22356553,0.00018,2]
[393216517,1762330326989,150.0,0.00017369,120]
[393216522,1762330388634,-150.0,0.00017369,2]
[393216523,1762330388659,-874.96853589,0.0001773,2]
[393216524,1762330388683,-195.0,0.00017806,2]
[393216525,1762330388708,-425.29704,0.0001782,2]
[393216526,1762330388734,-250.0,0.00017856,2]
[393216527,1762330388758,-1000.0,0.000179,2]
[393216528,1762330388781,-1000.0,0.000179,2]
[393216529,1762330404356,500.0,0.00017856,2]
[393216530,1762330412111,200.0,0.00017856,2]
[393216531,1762330412481,1000.0,0.000179,2]
[393216532,1762330543671,591.69,0.000179,2]
[393216569,1762330716371,913.3,0.00016438,2]
[393216570,1762330755485,2899.74442411,0.000179,2]
[393216571,1762330756345,-193.32633915,0.000179,2]
[393216572,1762330800137,158.0,0.000301,120]
[393216573,1762330802768,158.0,0.000301,120]
[393216574,1762330816359,-251.77247408,0.00017778,2]
[393216575,1762330820004,158.0,0.000179,3]
[393216576,1762330821215,158.0,0.000179,3]
[393216577,1762330823271,-441.2205273,0.00017778,2]
[393216579,1762330876346,-302.46887359,0.00017674,2]
[393216580,1762330906952,-285.56112641,0.00017674,2]
[393216581,1762330951336,-300.0,0.00017674,2]
[393216582,1762330960861,158.0,0.000179,3]
[393216583,1762330961267,299.84438341,0.0003,120]
[393216584,1762330967225,-194.99544923,0.000176,2]
[393216585,1762331015354,159.0,0.00016,2]
[393216586,1762331043464,159.6,0.00016,2]
[393216594,1762331186517,2028.85718965,0.00015,2]
[393216595,1762331191306,-205.00455077,0.000176,2]
[393216596,1762331191340,-250.0,0.00017618,2]
[393216597,1762331191374,-195.0,0.00017637,2]
[393216598,1762331191408,-215.79980123,0.00017685,2]
[393216599,1762331191441,-221.75791629,0.00017693,2]
[393216600,1762331191472,-182.96257901,0.00017696,2]
[393216601,1762331191503,-329.33264221,0.00017696,2]
[393216602,1762331191533,-182.90690085,0.00017709,2]
[393216603,1762331191563,-307.00699862,0.00017778,2]
[393216604,1762331191594,-1000.0,0.00017785,2]
[393216605,1762331191624,-1000.0,0.00017793,2]
[393216606,1762331191654,-150.99,0.00017793,2]
[393216607,1762331191686,-512.43340892,0.00017799,2]
[393216608,1762331197233,-1000.0,0.000178,2]
[393216609,1762331197264,-2099.84219992,0.00017841,2]
[393216610,1762331197580,-744.08851485,0.00017841,2]
[393216611,1762331203324,-3056.23708531,0.00017841,2]
[393216612,1762331203355,-224.90292546,0.00017841,2]
[393216613,1762331203389,-1200.0,0.00017855,2]
[393216614,1762331203421,-300.0,0.00017855,2]
[393216615,1762331214277,5000.00292773,0.000162,5]
[393216617,1762331246511,162.73,0.00025482,120]
[393216618,1762331270897,2092.61281035,0.00015,2]
[393216619,1762331270925,6659.27047307,0.00015,2]
[393216620,1762331270950,6659.27047307,0.00015,2]
[393216621,1762331270975,6659.27047307,0.00015,2]
[393216622,1762331270999,6659.27047307,0.00015,2]
[393216623,1762331271022,6659.27047307,0.00015,2]
[393216624,1762331271047,6659.27047307,0.00015,2]
[393216625,1762331271072,6659.27047307,0.00015,2]
[393216626,1762331271095,6659.27047307,0.00015,2]
[393216627,1762331271119,2417.82185056,0.00015,2]
[393216631,1762331308980,502.93416006,0.000154,2]
[393216632,1762331315460,2365.75601512,0.00015,2]
[393216633,1762331316694,-190.72515153,0.00015807,2]
[393216634,1762331318238,-372.37402165,0.00015807,2]
[393216635,1762331323600,-362.36717236,0.00015807,2]
[393216636,1762331325849,-176.5059819,0.00015807,2]
[393216637,1762331327474,-305.33426883,0.00015807,2]
[393216638,1762331333092,-185.39804047,0.00015807,2]
[393216639,1762331335601,199.51581665,0.000179,3]
[393216640,1762331337063,-251.01178691,0.00015807,2]
[393216674,1762331432347,-40.4446924,0.00015807,2]
[393216676,1762331432356,-162.73,0.00016988,2]
[393216678,1762331432366,-300.0,0.00017388,2]
[393216680,1762331432376,-355.86717793,0.00017388,2]
[393216682,1762331432385,-195.0,0.00017388,2]
[393216684,1762331432395,-1000.0,0.00017726,2]
[393216686,1762331432404,-1425.0,0.00017739,2]
[393216688,1762331432413,-1425.0,0.0001774,2]
[393216691,1762331432425,-1425.0,0.00017757,2]
[393216693,1762331432434,-1000.0,0.00017769,2]
[393216694,1762331432446,-1000.0,0.00017813,2]
[393216696,1762331432455,-1120.09916311,0.00017822,2]
[393216698,1762331432465,-1425.0,0.00017829,2]
[393216699,1762331432474,-300.0,0.0001784,2]
[393216700,1762331432483,-1200.0,0.0001784,2]
[393216701,1762331432491,-300.0,0.0001784,2]
[393216702,1762331432501,-701.25011954,0.00017841,2]
[393216703,1762331432512,-1798.74988046,0.00017841,2]
[393216704,1762331432521,-2369.88310793,0.00017841,2]
[393216705,1762331432533,-261.44779119,0.00017841,2]
[393216706,1762331432582,-2015.78135268,0.00017841,2]
[393216707,1762331432592,-282.67420845,0.00017841,2]
[393216708,1762331432601,-219.58526583,0.00017841,2]
[393216709,1762331432610,-4647.11225171,0.00017848,2]
[393216710,1762331432619,-682.68187493,0.00017854,2]
[393216711,1762331432634,-3964.43037678,0.00017854,2]
[393216712,1762331432643,-376.0,0.00017855,2]
[393216713,1762331432652,-200.0,0.00017856,2]
[393216714,1762331432661,-9999.99,0.00017856,2]
[393216715,1762331432670,-4647.11225171,0.00017861,2]
[393216716,1762331432679,-300.0,0.00017866,2]
[393216717,1762331432691,-4647.11225171,0.00017867,2]
[393216718,1762331432700,-999.99,0.00017871,2]
[393216719,1762331432709,-193.3251,0.00017872,2]
[393216720,1762331432719,-500.0,0.00017873,2]
[393216722,1762331432728,-503.31931756,0.00017873,2]
[393216724,1762331432737,-500.0,0.00017873,2]
[393216725,1762331432747,-500.31544654,0.00017873,2]
[393216726,1762331432756,-500.0,0.00017873,2]
[393216727,1762331432765,-500.0,0.00017873,2]
[393216728,1762331432775,-500.0,0.00017873,2]
[393216729,1762331432784,-500.0,0.00017873,2]
[393216730,1762331432794,-4647.11225171,0.00017874,2]
[393216731,1762331432803,-589.34431333,0.00017875,2]
[393216732,1762331432812,-4647.11225171,0.0001788,2]
[393216733,1762331432821,-4647.11225171,0.00017887,2]
[393216734,1762331432830,-1425.0,0.00017892,2]
[393216735,1762331432839,-4647.11225171,0.00017893,2]
[393216736,1762331432847,-162.12037659,0.00017898,2]
[393216737,1762331432856,-4647.11225171,0.000179,2]
[393216738,1762331432865,-491.7709125,0.000179,2]
[393216739,1762331432874,-297.9657031,0.000179,2]
[393216740,1762331432883,-189.31142788,0.000179,2]
[393216741,1762331432892,-253.00839205,0.000179,2]
[393216742,1762331433110,-5163.99911279,0.000179,2]
[393216743,1762331433122,-425.29704,0.0001791,2]
[393216744,1762331433142,-1000.0,0.00017913,2]
[393216745,1762331433152,-1425.0,0.00017915,2]
[393216746,1762331433162,-1000.0,0.00017918,2]
[393216747,1762331433171,-2608.1615155,0.00017919,2]
[393216748,1762331433181,-163.3,0.00017931,2]
[393216749,1762331433191,-153.96997627,0.00017933,2]
[393216750,1762331433200,-151.0,0.00017938,2]
[393216751,1762331433211,-500.0,0.0001794,2]
[393216752,1762331433220,-213.74967293,0.0001794,2]
[393216753,1762331433230,-500.0,0.0001794,2]
[393216754,1762331433239,-500.0,0.0001794,2]
[393216755,1762331433249,-500.0,0.0001794,2]
[393216756,1762331433258,-500.0,0.0001794,2]
[393216757,1762331433268,-33254.3761,0.00017941,2]
[393216758,1762331433277,-71057.02556412,0.00017941,2]
[393216759,1762331433294,-6268.16078329,0.00017941,2]
[393216760,1762331433317,-542.82267478,0.00017941,2]
[393216762,1762331438394,-4198.5551529,0.00017941,2]
[393216763,1762331438466,-3631.104477,0.00017941,2]
[393216764,1762331438479,-11160.0,0.00017941,2]
[393216779,1762331440365,-4999.57791001,0.00017941,2]
[393216780,1762331440399,-81.89638475,0.00017941,2]
[393216781,1762331440525,-81715.51340699,0.00017941,2]
[393216782,1762331440537,-236345.34364616,0.00017941,2]
[393216783,1762331440546,-1000.0,0.00017941,2]
[393216784,1762331440555,-292.14376396,0.00017941,2]
[393216785,1762331440565,-1425.0,0.00017941,2]
[393216786,1762331440574,-1425.0,0.00017952,2]
[393216787,1762331440583,-403.4952759,0.00017958,2]
[393216788,1762331440592,-500.0,0.00017964,2]
[393216789,1762331440601,-1425.0,0.00017966,2]
[393216790,1762331440610,-1425.0,0.00017968,2]
[393216791,1762331440619,-500.0,0.00017973,2]
[393216792,1762331440629,-346.48749089,0.00017973,2]
[393216793,1762331440638,-500.0,0.00017973,2]
[393216794,1762331440648,-500.0,0.00017973,2]
[393216795,1762331440657,-500.39073057,0.00017973,2]
[393216796,1762331440667,-500.0,0.00017973,2]
[393216797,1762331440676,-500.0,0.00017973,2]
[393216798,1762331440686,-500.0,0.00017973,2]
[393216799,1762331440696,-500.79767075,0.00017973,2]
[393216800,1762331440705,-500.0,0.00017973,2]
[393216801,1762331440715,-510.55136191,0.00017973,2]
[393216802,1762331440724,-500.0,0.00017973,2]
[393216803,1762331440734,-500.0,0.00017973,2]
[393216804,1762331440743,-1000.0,0.00017978,2]
[393216805,1762331440753,-1425.0,0.00017981,2]
[393216806,1762331440763,-500.0,0.00017982,2]
[393216807,1762331440772,-3888.1883997,0.00017986,2]
[393216808,1762331440781,-11193.0971254,0.00017987,2]
[393216809,1762331440791,-1993.0460345,0.00017987,2]
[393216810,1762331440800,-1102.4952594,0.00017987,2]
[393216811,1762331440810,-309.84740584,0.00017988,2]
[393216812,1762331440819,-500.0,0.00017988,2]
[393216813,1762331440829,-367.82557697,0.00017988,2]
[393216814,1762331440839,-500.0,0.00017988,2]
[393216815,1762331440848,-577.58074401,0.00017988,2]
[393216816,1762331440859,-692.76,0.00017989,2]
[393216817,1762331440868,-437.43,0.00017989,2]
[393216818,1762331440878,-322.6107,0.00017989,2]
[393216819,1762331440888,-500.0,0.00017989,2]
[393216820,1762331440901,-500.0,0.00017989,2]
[393216821,1762331440911,-250.0,0.00017989,2]
[393216823,1762331440921,-500.0,0.00017989,2]
[393216824,1762331440931,-500.0,0.00017989,2]
[393216825,1762331440940,-168.55909808,0.00017989,2]
[393216826,1762331440951,-500.0,0.00017989,2]
[393216827,1762331440960,-500.0,0.00017989,2]
[393216828,1762331440970,-500.0,0.00017989,2]
[393216829,1762331440980,-500.0,0.00017989,2]
[393216830,1762331440990,-500.0,0.00017989,2]
[393216831,1762331440999,-500.0,0.00017989,2]
[393216832,1762331441009,-500.0,0.00017989,2]
[393216833,1762331441019,-151.0,0.00017989,2]
[393216834,1762331441028,-500.0,0.00017989,2]
[393216835,1762331441038,-510.23419325,0.00017989,2]
[393216836,1762331441048,-151.0,0.00017989,2]
[393216837,1762331441057,-500.0,0.00017989,2]
[393216838,1762331441067,-151.0,0.00017989,2]
[393216839,1762331441077,-500.0,0.00017989,2]
[393216840,1762331441087,-151.0,0.00017989,2]
[393216841,1762331441096,-500.0,0.00017989,2]
[393216842,1762331441106,-151.0,0.00017989,2]
[393216843,1762331441115,-151.0,0.00017989,2]
[393216844,1762331441124,-151.0,0.00017989,2]
[393216845,1762331441134,-151.0,0.00017989,2]
[393216846,1762331441143,-151.0,0.00017989,2]
[393216847,1762331441152,-151.0,0.00017989,2]
[393216848,1762331441162,-151.0,0.00017989,2]
[393216849,1762331441171,-151.0,0.00017989,2]
[393216850,1762331441180,-151.0,0.00017989,2]
[393216851,1762331441190,-151.0,0.00017989,2]
[393216852,1762331441200,-151.0,0.00017989,2]
[393216853,1762331441209,-151.0,0.00017989,2]
[393216854,1762331441219,-151.0,0.00017989,2]
[393216855,1762331441228,-151.0,0.00017989,2]
[393216856,1762331441239,-151.0,0.00017989,2]
[393216857,1762331441249,-151.0,0.00017989,2]
[393216858,1762331441258,-151.0,0.00017989,2]
[393216859,1762331441267,-151.0,0.00017989,2]
[393216860,1762331441277,-151.0,0.00017989,2]
[393216861,1762331441287,-151.0,0.00017989,2]
[393216862,1762331441296,-151.0,0.00017989,2]
[393216863,1762331441305,-151.0,0.00017989,2]
[393216864,1762331441315,-151.0,0.00017989,2]
[393216865,1762331441324,-151.0,0.00017989,2]
[393216866,1762331441333,-151.0,0.00017989,2]
[393216867,1762331441343,-163.3,0.0001799,2]
[393216868,1762331441352,-163.3,0.0001799,2]
[393216869,1762331441362,-163.3,0.0001799,2]
[393216870,1762331441371,-163.3,0.0001799,2]
[393216871,1762331441381,-163.3,0.0001799,2]
[393216872,1762331441391,-163.3,0.0001799,2]
[393216873,1762331441400,-876.16945045,0.0001799,2]
[393216874,1762331441410,-876.16945045,0.0001799,2]
[393216875,1762331441419,-876.16945045,0.0001799,2]
[393216876,1762331441428,-151.0,0.00017997,2]
[393216877,1762331441439,-21696.8165938,0.00017998,2]
[393216878,1762331441449,-1000.0,0.00017999,2]
[393216879,1762331441459,-332.57204277,0.00017999,2]
[393216880,1762331441468,-150.0,0.00017999,2]
[393216881,1762331441478,-150.0,0.00017999,2]
[393216882,1762331441487,-150.0,0.00017999,2]
[393216883,1762331441497,-150.0,0.00017999,2]